bitfinex-derivatives/quotes_ETHF0:USTF0_20240927
["timestamp","ask_amount","ask_price","bid_price","bid_amount"]
[1727454722116,0.36907,2708.8,2708.7,0.36908]
[1727454722619,0.36906,2708.9,2708.8,0.36906]
[1727454722913,0.36906,2708.9,2708.8,3.2078]
[1727454723111,1.2941,2709.1,2708.8,3.57687]
[1727454723312,0.36903,2709.1,2708.8,3.2078]
[1727454723511,0.36903,2709.1,2709.0,0.36904]
[1727454723718,0.36903,2709.1,2708.9,0.36905]
[1727454724220,0.92253,2709.3,2708.8,3.2078]
[1727454724420,0.92253,2709.3,2708.8,3.57686]
[1727454724807,0.36905,2709.0,2708.8,3.2078]
[1727454725014,0.36904,2709.1,2708.8,3.2078]
[1727454725210,0.36905,2709.0,2708.8,3.2078]
[1727454725421,0.36905,2709.0,2708.8,0.36906]
[1727454725927,0.36903,2709.2,2708.9,0.36905]
[1727454726132,0.36903,2709.1,2708.9,0.36905]
[1727454726416,0.36904,2709.0,2708.8,0.36906]
[1727454727121,0.36904,2709.1,2708.8,0.36906]
[1727454727322,0.36904,2709.0,2708.8,0.36906]
[1727454727517,0.36904,2709.1,2708.8,0.36906]
[1727454728311,0.92253,2709.3,2708.8,0.36906]
[1727454729018,0.36905,2709.0,2708.8,0.36906]
[1727454729414,0.92253,2709.3,2708.8,0.36906]
[1727454729415,0.36904,2709.1,2708.8,0.36906]
[1727454729722,0.36905,2709.0,2708.8,3.2078]
[1727454729921,0.36905,2709.0,2708.8,3.57686]
[1727454730622,1.86545968,2708.9,2708.8,3.57686]
[1727454730818,2.72659764,2709.0,2708.8,3.57686]
[1727454731013,2.72658764,2709.0,2708.8,3.2078]
[1727454731321,1.31679338,2709.2,2708.9,8.88123809]
[1727454731515,2.35754764,2709.4,2709.3,0.369]
[1727454731713,0.92227,2710.1,2709.1,3.2078]
[1727454731714,2.41011765,2709.5,2709.1,3.2078]
[1727454731921,3.33702751,2710.1,2708.8,0.3983]
[1727454731922,2.41011765,2709.8,2709.5,0.92244]
[1727454732221,0.36891,2710.0,2709.9,0.36892]
[1727454732628,3.22918929,2710.2,2710.1,0.36889]
[1727454732825,3.33702751,2710.3,2710.0,3.5767]
[1727454732826,0.36889,2710.1,2710.0,3.5767]
[1727454733131,0.36889,2710.2,2710.1,0.36889]
[1727454733522,3.78246929,2710.4,2710.0,3.5767]
[1727454733523,0.36889,2710.1,2710.0,3.5767]
[1727454733724,0.36887,2710.3,2710.2,0.36887]
[1727454734124,2.86030929,2710.4,2710.0,3.2078]
[1727454734428,2.40927141,2710.1,2710.0,3.57671]
[1727454735521,0.92239,2709.7,2709.3,0.369]
[1727454735729,0.36906,2708.9,2708.8,3.2078]
[1727454735915,0.36906,2708.9,2708.5,3.2078]
[1727454735916,2.40973977,2708.9,2708.5,3.2078]
[1727454736119,2.40973977,2709.1,2708.9,0.36906]
[1727454736318,2.40973977,2709.4,2709.2,0.36902]
[1727454736531,2.40973977,2709.4,2708.8,3.2078]
[1727454736532,2.77870977,2709.5,2709.4,0.36899]
[1727454736728,3.33702751,2710.0,2709.4,3.2078]
[1727454736729,2.86030929,2709.8,2709.4,3.2078]
[1727454736929,4.64672751,2710.0,2709.5,2.21385]
[1727454736930,2.40948133,2709.6,2709.5,2.21385]
[1727454737223,3.33702751,2710.2,2710.0,0.36891]
[1727454737224,2.40948133,2710.2,2710.0,0.36891]
[1727454737429,2.40948133,2710.3,2710.2,2.2133]
[1727454737624,2.40948133,2710.6,2710.2,0.92221]
[1727454737924,0.3874,2710.9,2710.5,3.2078]
[1727454737925,2.40948133,2710.7,2710.5,3.2078]
[1727454738127,0.36882,2710.6,2710.5,3.2078]
[1727454738319,2.40948133,2710.6,2710.3,0.36886]
[1727454738519,2.40948133,2710.5,2710.4,3.2078]
[1727454738719,3.71885133,2710.9,2710.1,3.57668]
[1727454738920,0.36888,2710.3,2710.2,0.36888]
[1727454739126,2.79688133,2710.9,2710.1,3.2078]
[1727454739331,2.79688133,2710.9,2710.4,3.2078]
[1727454739332,0.3688,2710.8,2710.4,3.2078]
[1727454739627,0.75619,2710.9,2710.7,0.36881]
[1727454740329,0.75619,2710.9,2710.4,3.2078]
[1727454740330,0.36884,2710.5,2710.4,3.2078]
[1727454740529,0.36879,2710.9,2710.8,0.3688]
[1727454740828,0.3688,2710.8,2710.4,3.2078]
[1727454741032,0.36882,2710.7,2710.5,0.36883]
[1727454741223,0.3898,2710.9,2710.4,3.2078]
[1727454741422,0.3898,2710.9,2710.7,0.36881]
[1727454741423,0.75859,2710.9,2710.7,0.36881]
[1727454741830,0.3898,2710.9,2710.8,0.3688]
[1727454742128,0.3688,2710.8,2710.7,3.2078]
[1727454742630,4.0576,2710.8,2710.7,3.2078]
[1727454743226,0.3898,2710.9,2710.7,3.5766]
[1727454743526,0.01,2711.0,2710.7,3.2078]
[1727454743830,0.01,2711.0,2710.8,0.36879]
[1727454744017,0.01,2711.0,2710.9,0.36878]
[1727454745621,0.01,2711.0,2710.9,11.90152]
[1727454745821,2.40948133,2711.9,2711.4,0.36871]
[1727454746024,2.40948133,2711.9,2711.4,3.2078]
[1727454746231,0.36866,2711.9,2711.4,3.2078]
[1727454746525,0.36866,2711.9,2711.6,0.36868]
[1727454746725,1.30138,2712.1,2711.8,0.36866]
[1727454746726,0.74843,2712.1,2711.8,0.36866]
[1727454746928,0.9214,2712.6,2712.0,3.2078]
[1727454746929,2.40948133,2712.6,2712.0,3.2078]
[1727454747226,2.40948133,2712.6,2711.4,3.2078]
[1727454747227,0.92169,2711.8,2711.4,3.2078]
[1727454747429,3.2078,2712.4,2710.8,3.2078]
[1727454747430,0.92183,2711.3,2710.8,3.2078]
[1727454747620,0.92175,2711.6,2710.8,3.2078]
[1727454747825,0.9218,2711.4,2710.9,0.36878]
[1727454748026,0.36874,2711.3,2711.0,0.36877]
[1727454748227,2.40948133,2711.9,2711.7,0.36866]
[1727454748527,2.40948133,2712.2,2711.8,0.36866]
[1727454748724,0.36865,2711.9,2711.7,0.36867]
[1727454748933,2.40948133,2712.2,2711.7,0.36867]
[1727454749124,3.14568133,2712.3,2711.5,3.2078]
[1727454749322,0.36865,2711.9,2711.5,3.2078]
[1727454749636,0.92156,2712.1,2711.2,3.2078]
[1727454749826,0.3687,2711.6,2711.2,3.2078]
[1727454750026,0.92163,2711.9,2711.3,0.36873]
[1727454750223,9.60728133,2712.2,2711.2,3.2078]
[1727454750532,3.2078,2711.9,2711.2,3.2078]
[1727454750727,0.36872,2711.4,2711.2,3.2078]
[1727454750924,0.3795,2711.8,2711.3,0.36873]
[1727454751130,0.36868,2711.7,2711.2,3.2078]
[1727454751433,0.3795,2711.8,2711.1,0.36876]
[1727454751636,0.3795,2711.8,2710.9,3.2078]
[1727454751637,0.92176,2711.5,2710.9,3.2078]
[1727454751825,0.36874,2711.2,2710.9,3.57658]
[1727454752030,0.3795,2711.6,2710.9,3.57658]
[1727454752031,0.9218,2711.4,2710.9,3.2078]
[1727454752229,0.36881,2710.7,2710.6,3.2078]
[1727454752531,0.92187,2711.2,2710.4,3.2078]
[1727454752532,0.36878,2711.0,2710.4,3.2078]
[1727454752733,0.92187,2711.2,2710.4,3.2078]
[1727454752933,0.92187,2711.2,2710.1,4.91221]
[1727454752934,0.36879,2710.9,2710.7,3.2078]
[1727454753237,0.36877,2711.0,2710.7,0.36881]
[1727454753430,0.92183,2711.3,2710.4,3.2078]
[1727454753827,0.36881,2710.8,2710.5,0.36884]
[1727454754022,0.36881,2710.7,2710.4,3.57665]
[1727454754223,0.92198,2710.9,2710.4,3.2078]
[1727454754421,0.36883,2710.6,2710.4,3.2078]
[1727454754835,0.3683,2710.9,2710.4,3.2078]
[1727454755233,0.36884,2710.5,2710.4,3.2078]
[1727454755431,1.29094,2710.5,2710.4,3.2078]
[1727454755629,0.36893,2709.8,2709.7,3.2078]
[1727454755827,0.36893,2709.8,2709.1,0.92256]
[1727454755828,2.40948133,2710.2,2709.4,3.2078]
[1727454756127,0.36887,2710.3,2710.0,3.2078]
[1727454756323,2.40948133,2710.5,2710.0,3.2078]
[1727454756535,0.92214,2710.4,2709.9,0.36892]
[1727454756735,0.36885,2710.5,2710.2,0.36887]
[1727454756929,0.92207,2710.6,2710.1,0.36889]
[1727454757125,2.40948133,2710.7,2710.0,3.2078]
[1727454757331,0.4001,2710.8,2710.0,3.2078]
[1727454757525,0.4001,2710.8,2710.4,0.36884]
[1727454757729,0.36883,2710.6,2710.3,0.36886]
[1727454757926,0.36882,2710.7,2710.4,0.36885]
[1727454758943,2.40948133,2710.8,2710.3,3.2078]
[1727454759236,3.5761,2710.9,2710.3,3.2078]
[1727454759237,0.36885,2710.5,2710.3,3.2078]
[1727454759546,0.36885,2710.5,2710.3,3.57666]
[1727454759835,0.3683,2710.9,2710.5,0.36884]
[1727454760031,0.3688,2710.8,2710.4,0.36885]
[1727454760232,0.3688,2710.8,2710.5,0.36884]
[1727454760435,0.3688,2710.8,2710.6,0.36882]
[1727454760636,0.73709,2710.9,2710.6,3.2078]
[1727454760836,0.3688,2710.8,2710.6,3.2078]
[1727454761036,0.36881,2710.7,2710.6,3.2078]
[1727454761428,4.05761,2710.7,2710.6,3.2078]
[1727454761832,0.36881,2710.7,2710.6,3.2078]
[1727454762335,3.6888,2710.7,2710.6,3.57662]
[1727454762533,4.05761,2710.7,2710.6,3.2078]
[1727454763134,0.3689,2710.1,2709.9,3.57672]
[1727454763439,0.36883,2710.6,2710.4,0.36884]
[1727454763654,0.3688,2710.8,2710.6,0.36882]
[1727454763840,0.3683,2710.9,2710.2,3.2078]
[1727454764040,0.3683,2710.9,2710.5,3.2078]
[1727454764238,0.73709,2710.9,2710.7,0.36881]
[1727454764741,0.36875,2711.2,2711.0,0.36876]
[1727454764941,0.36876,2711.1,2710.9,0.36878]
[1727454765133,0.3942,2711.3,2710.8,3.2078]
[1727454765337,0.75553,2711.4,2710.8,3.2078]
[1727454765543,0.36874,2711.3,2711.1,3.2078]
[1727454765842,0.3868,2711.4,2711.1,3.2078]
[1727454766145,0.3868,2711.4,2711.3,0.36873]
[1727454767040,12.4338,2712.4,2711.3,3.688]
[1727454767241,9.59459,2712.4,2712.2,0.3686]
[1727454767543,1.68884,2712.5,2712.0,3.2078]
[1727454767732,0.92146,2712.4,2712.0,3.2078]
[1727454767937,0.36862,2712.1,2712.0,3.2078]
[1727454768136,4.4546,2712.5,2712.0,3.2078]
[1727454768343,4.4546,2712.5,2711.5,0.92176]
[1727454768344,3.6872,2712.4,2711.7,3.2078]
[1727454768536,0.92153,2712.2,2711.7,3.57647]
[1727454768739,1.9174146,2711.9,2711.8,0.36866]
[1727454768943,1.9174146,2711.9,2711.7,3.2078]
[1727454768944,1.9174146,2712.0,2711.7,3.2078]
[1727454769143,1.9174146,2712.0,2711.9,0.36865]
[1727454769459,1.9174146,2712.0,2711.5,0.3687]
[1727454769460,0.36868,2711.7,2711.5,0.3687]
[1727454769745,0.92176,2711.5,2711.1,3.2078]
[1727454769932,2.40948133,2711.2,2710.7,0.3688]
[1727454770133,1.91912325,2711.1,2710.8,3.2078]
[1727454770333,1.91957193,2711.3,2710.8,3.2078]
[1727454770548,1.91957193,2711.2,2711.1,0.36875]
[1727454770744,1.91957193,2711.3,2711.1,3.2078]
[1727454770936,0.36877,2711.0,2710.8,3.2078]
[1727454771136,0.36876,2711.1,2710.8,3.2078]
[1727454771342,1.91957193,2711.2,2711.1,0.36876]
[1727454771543,2.28831193,2711.3,2711.2,0.36874]
[1727454771836,2.28830193,2711.4,2711.2,0.36874]
[1727454772036,1.91957193,2711.4,2711.1,3.2078]
[1727454772245,1.91957193,2711.6,2711.2,4.60987]
[1727454772441,2.77816133,2711.7,2711.5,3.2078]
[1727454772637,1.92023189,2711.6,2711.5,3.57649]
[1727454773446,2.40948133,2711.7,2711.5,3.2078]
[1727454773744,1.92070025,2711.6,2711.5,3.57649]
[1727454774133,2.40948133,2711.7,2711.6,0.36869]
[1727454774736,2.40948133,2711.9,2711.8,0.36866]
[1727454774933,3.33702751,2712.3,2711.9,0.36865]
[1727454774934,2.40948133,2712.0,2711.9,0.36865]
[1727454775137,3.33702751,2712.4,2711.8,3.57645]
[1727454775138,2.40948133,2712.1,2711.8,3.57645]
[1727454775344,1.92165722,2711.9,2711.8,3.57645]
[1727454775834,0.36862,2712.1,2711.9,0.36865]
[1727454776034,2.84312722,2712.4,2711.9,0.36864]
[1727454776235,0.36863,2712.1,2711.9,0.36864]
[1727454776442,0.36861,2712.2,2712.0,0.36863]
[1727454776750,0.36864,2712.0,2711.8,3.57645]
[1727454776954,0.36863,2712.1,2711.8,3.57645]
[1727454777143,0.92154,2712.2,2711.8,3.2078]
[1727454777341,1.29028,2711.9,2711.8,3.2078]
[1727454777541,1.29028,2711.9,2711.2,3.57653]
[1727454777542,0.36871,2711.5,2711.2,3.57653]
[1727454777743,0.36871,2711.5,2711.3,0.36872]
[1727454777744,0.3687,2711.5,2711.3,0.36872]
[1727454777949,0.36873,2711.3,2711.2,3.2078]
[1727454779049,0.36873,2711.4,2711.2,3.57654]
[1727454779345,1.92165722,2711.7,2711.2,3.2078]
[1727454779548,0.36869,2711.6,2711.4,3.2078]
[1727454779750,1.92165722,2711.9,2711.1,3.2078]
[1727454779938,1.29061,2711.2,2711.1,3.2078]
[1727454780251,1.29061,2711.2,2710.3,3.2078]
[1727454780252,0.3688,2710.8,2710.3,3.2078]
[1727454780552,0.36879,2710.9,2710.7,0.3688]
[1727454780852,0.36879,2710.9,2710.7,0.36881]
[1727454781048,0.36878,2711.0,2710.4,0.92214]
[1727454781353,1.92429358,2711.2,2710.4,0.92214]
[1727454781545,2.65689358,2711.3,2710.6,7.1978]
[1727454781747,1.10134,2711.3,2711.1,0.36875]
[1727454781947,1.10134,2711.3,2710.6,8.11985]
[1727454781948,0.36875,2711.2,2710.6,8.11985]
[1727454782148,2.40948133,2711.6,2710.8,0.922]
[1727454782149,1.92429358,2711.5,2710.8,0.922]
[1727454782348,0.36871,2711.5,2711.3,0.36872]
[1727454782548,3.23464358,2711.6,2711.2,0.36874]
[1727454782743,0.36872,2711.4,2711.3,0.36873]
[1727454783055,2.31289358,2711.6,2711.4,0.36871]
[1727454783350,0.36869,2711.6,2711.0,0.92193]
[1727454783549,1.92429358,2711.7,2711.4,0.36871]
[1727454783759,1.92429358,2711.7,2711.3,0.36872]
[1727454784050,2.86030929,2711.5,2711.4,0.36871]
[1727454784461,3.22900929,2711.6,2711.5,0.3687]
[1727454785352,2.88826599,2711.6,2711.5,0.3687]
[1727454785558,3.25695599,2711.6,2711.5,0.3687]
[1727454785855,0.36869,2711.6,2711.5,0.3687]
[1727454786047,3.25703853,2711.6,2711.4,0.36871]
[1727454786447,2.88834853,2711.6,2710.9,6.7478]
[1727454786657,1.92568856,2711.0,2710.9,7.11658]
[1727454787057,1.92568856,2711.0,2710.9,7.26538]
[1727454787251,1.92568856,2711.0,2710.9,3.57658]
[1727454787450,1.92568856,2711.0,2710.3,0.92214]
[1727454787451,0.36885,2710.4,2710.3,3.2078]
[1727454787760,7.14745604,2710.6,2710.0,3.2078]
[1727454788058,0.3689,2710.1,2709.8,0.36893]
[1727454788248,2.88834853,2710.3,2709.7,3.2078]
[1727454788249,3.81055853,2710.2,2709.7,3.2078]
[1727454788444,2.40845218,2709.9,2709.7,3.57675]
[1727454788654,0.36897,2709.6,2709.2,3.2078]
[1727454788955,1.92652374,2709.5,2709.4,0.36899]
[1727454789455,1.92652374,2709.5,2709.4,0.36898]
[1727454790061,2.40840427,2709.6,2709.5,0.36897]
[1727454790359,4.10252751,2710.1,2709.7,0.36895]
[1727454790360,2.40840427,2709.8,2709.7,0.36895]
[1727454790556,1.31799812,2709.8,2709.7,4.91238]
[1727454790753,2.40840427,2710.2,2710.0,0.36891]
[1727454790950,0.3688,2710.8,2710.6,0.36881]
[1727454791259,2.74796,2711.1,2710.9,0.36878]
[1727454791652,0.3812,2711.1,2711.0,0.36877]
[1727454791963,5.61620427,2711.6,2710.5,3.99]
[1727454792165,3.2078,2711.6,2711.2,0.36874]
[1727454792456,3.2078,2711.6,2710.7,3.2078]
[1727454792658,0.36869,2711.7,2711.0,4.12973]
[1727454792857,0.36869,2711.7,2711.5,0.36869]
[1727454793055,4.05669,2711.7,2711.6,0.36869]
[1727454793359,3.589,2712.0,2711.2,0.92184]
[1727454793360,3.95764,2712.0,2711.2,0.92184]
[1727454793556,0.3812,2712.0,2711.7,0.36866]
[1727454793758,0.74984,2712.0,2711.8,0.36866]
[1727454793959,0.36866,2711.8,2711.6,0.36868]
[1727454794147,0.36866,2711.8,2711.7,0.36868]
[1727454794459,0.3812,2712.0,2711.9,0.36865]
[1727454794655,0.3812,2712.0,2711.4,4.12957]
[1727454794656,0.3812,2712.0,2711.7,0.36867]
[1727454794853,0.3812,2712.0,2711.8,0.36865]
[1727454795161,0.3812,2712.0,2711.4,3.2078]
[1727454795659,0.7972,2712.2,2711.4,3.2078]
[1727454795855,0.7972,2712.2,2711.4,3.959]
[1727454795856,0.36862,2712.1,2711.4,3.959]
[1727454796158,0.36862,2712.2,2711.4,4.88077]
[1727454796365,3.32985427,2712.5,2711.9,0.36864]
[1727454796660,0.3686,2712.3,2712.0,0.36862]
[1727454796861,2.40840427,2712.5,2712.0,0.36862]
[1727454796862,0.36859,2712.4,2712.0,0.36862]
[1727454797064,2.77697427,2712.5,2711.7,3.2078]
[1727454797262,0.36859,2712.4,2712.1,0.36861]
[1727454797562,3.2078,2712.6,2711.7,3.2078]
[1727454797863,0.36859,2712.4,2712.1,0.36861]
[1727454798453,3.57636,2712.6,2712.3,0.36859]
[1727454798657,3.2078,2712.6,2712.5,0.36857]
[1727454798857,0.4014,2712.7,2712.5,0.36857]
[1727454799159,0.33709797,2712.6,2712.5,0.36857]
[1727454799361,1.76687241,2713.3,2712.5,0.36857]
[1727454799362,4.20843356,2714.3,2712.8,0.36853]
[1727454799575,3.2078,2717.2,2714.9,3.2078]
[1727454799871,3.2078,2717.2,2716.7,3.99]
[1727454800048,0.36796,2717.1,2716.7,3.99]
[1727454800249,3.2078,2716.9,2715.7,3.99]
[1727454800452,3.2078,2716.3,2715.7,3.99]
[1727454800655,3.2078,2716.6,2715.7,3.99]
[1727454800855,3.2078,2716.6,2715.7,7.1978]
[1727454801058,3.2078,2716.3,2715.7,3.99]
[1727454801254,3.2078,2716.3,2715.3,3.99]
[1727454801659,3.2078,2715.9,2714.8,3.99]
[1727454801863,2.233,2716.0,2714.8,3.99]
[1727454802068,3.2078,2715.8,2714.8,3.99]
[1727454802257,5.4408,2715.8,2714.9,4.60104064]
[1727454802465,5.4408,2715.8,2714.8,3.99]
[1727454802654,3.2078,2715.3,2714.8,3.99]
[1727454802858,3.2078,2714.9,2714.6,1.88880636]
[1727454803064,3.2078,2715.3,2714.6,2.25707636]
[1727454803261,3.2078,2715.3,2714.7,0.36827]
[1727454803262,5.4398,2715.3,2714.7,0.36827]
[1727454803558,5.4398,2715.3,2714.6,1.88880636]
[1727454803755,3.2078,2714.9,2714.6,1.88880636]
[1727454804062,0.3794,2716.0,2714.6,1.88880636]
[1727454804063,3.2078,2715.6,2714.8,7.1978]
[1727454804272,0.3794,2716.0,2714.8,7.1978]
[1727454804273,3.6134,2715.9,2714.8,7.1978]
[1727454804454,3.2078,2715.4,2714.6,1.88880636]
[1727454804658,3.2078,2715.7,2714.9,0.36823]
[1727454804854,3.2078,2715.7,2714.7,7.38724501]
[1727454805061,5.5188,2715.7,2714.9,0.36824]
[1727454805269,5.5188,2715.7,2714.7,3.2078]
[1727454805270,40.8,2715.6,2714.7,3.2078]
[1727454805458,43.11,2715.6,2715.0,3.2078]
[1727454805660,43.11,2715.6,2715.1,0.36821]
[1727454805861,43.11,2715.6,2715.0,3.2078]
[1727454806766,3.2078,2715.3,2714.6,1.88880636]
[1727454807061,49.11,2715.6,2714.6,1.88880636]
[1727454807062,3.2078,2714.9,2714.6,1.88880636]
[1727454808066,4.0768,2714.8,2714.6,1.28060636]
[1727454808260,4.4547,2714.8,2714.1,3.2078]
[1727454808468,3.2078,2714.5,2713.8,3.2078]
[1727454809071,3.2078,2714.5,2714.1,3.2078]
[1727454809268,0.7715,2714.8,2714.1,3.2078]
[1727454809467,0.7715,2714.8,2714.4,0.36831]
[1727454809982,3.5759,2716.0,2715.1,0.36821]
[1727454810171,3.2078,2715.7,2714.8,3.2078]
[1727454810468,3.2078,2715.7,2714.4,7.1978]
[1727454810674,41.5601,2715.9,2715.5,3.2078]
[1727454810869,0.7601,2715.9,2715.8,0.36812]
[1727454811169,0.7601,2715.9,2715.5,3.2078]
[1727454811775,3.2078,2716.4,2715.8,3.2078]
[1727454811972,0.36804,2716.4,2715.8,3.2078]
[1727454812173,0.36803,2716.5,2715.8,3.2078]
[1727454812372,3.2078,2716.4,2715.8,3.2078]
[1727454812570,44.0078,2716.7,2715.8,3.2078]
[1727454812770,44.0078,2716.7,2715.5,3.2078]
[1727454812771,3.2078,2716.4,2715.5,3.2078]
[1727454813070,3.2078,2716.4,2715.7,0.36812]
[1727454813276,0.7924,2716.8,2715.9,3.2078]
[1727454813277,4.0002,2716.8,2715.9,3.2078]
[1727454813477,1.16039,2716.8,2716.2,3.2078]
[1727454813976,0.7924,2716.8,2716.2,3.2078]
[1727454814172,1.16039,2716.8,2716.2,3.2078]
[1727454814574,0.7924,2716.8,2716.2,3.57586]
[1727454814768,0.7924,2716.8,2716.2,3.2078]
[1727454814968,0.368,2716.7,2716.2,3.2078]
[1727454815570,0.36802,2716.6,2716.2,3.2078]
[1727454815766,0.7924,2716.8,2715.9,3.2078]
[1727454815975,3.2078,2716.7,2715.9,3.5759]
[1727454816190,3.57581,2716.7,2716.0,0.36808]
[1727454816474,3.57581,2716.7,2716.1,0.36808]
[1727454816776,0.36801,2716.6,2716.0,0.36809]
[1727454816984,3.2078,2716.7,2715.9,3.2078]
[1727454817277,0.7924,2716.8,2715.9,3.2078]
[1727454817777,0.36792,2717.3,2716.7,0.36799]
[1727454817975,0.7325,2717.5,2716.7,3.2078]
[1727454818175,1.10039,2717.5,2716.9,0.36796]
[1727454818483,0.7325,2717.5,2716.4,3.2078]
[1727454818675,4.12764,2717.2,2716.4,3.2078]
[1727454818873,0.91999,2716.8,2716.0,3.2078]
[1727454819180,3.2078,2716.4,2716.0,3.2078]
[1727454819380,0.7325,2716.3,2716.0,3.57588]
[1727454819681,3.2078,2717.0,2716.0,3.2078]
[1727454819878,3.9403,2717.2,2716.0,3.2078]
[1727454820179,0.36807,2716.2,2716.0,3.2078]
[1727454820681,4.04968,2716.1,2716.0,3.2078]
[1727454820881,0.36812,2715.9,2715.4,3.2078]
[1727454821074,3.2078,2715.8,2714.7,3.57606]
[1727454821277,0.92034,2715.7,2714.8,0.36825]
[1727454821580,3.5751,2716.1,2715.1,3.2078]
[1727454821779,0.3673,2716.1,2715.1,3.2078]
[1727454821976,0.3673,2716.1,2715.3,0.36818]
[1727454822184,0.92024,2716.0,2715.1,3.57601]
[1727454822375,0.36814,2715.7,2715.1,3.2078]
[1727454822575,3.5751,2716.1,2715.1,3.2078]
[1727454822775,0.92024,2716.0,2715.2,0.36819]
[1727454822989,3.2078,2715.8,2715.1,3.57601]
[1727454823188,3.2078,2715.8,2715.4,0.36816]
[1727454823377,3.2078,2715.8,2715.4,3.2078]
[1727454823881,0.36815,2715.6,2715.2,0.36819]
[1727454824184,0.36817,2715.5,2715.1,3.57601]
[1727454824384,0.36819,2715.3,2714.9,0.36824]
[1727454824587,3.6424,2715.7,2715.1,0.36821]
[1727454824588,0.36816,2715.5,2715.1,0.36821]
[1727454824983,0.36816,2715.5,2715.3,3.2078]
[1727454825283,3.2078,2715.7,2715.3,3.2078]
[1727454826085,0.36815,2715.6,2715.3,3.2078]
[1727454826384,3.2078,2715.7,2715.3,3.2078]
[1727454826588,3.57594,2715.7,2715.3,3.57598]
[1727454826778,0.36817,2715.5,2715.3,3.2078]
[1727454826979,3.2078,2715.7,2715.3,3.2078]
[1727454827180,0.36822,2715.1,2714.9,3.2078]
[1727454827388,0.3682,2715.2,2714.9,3.2078]
[1727454827584,3.2078,2715.8,2714.9,3.2078]
[1727454827884,0.92044,2715.4,2714.9,3.2078]
[1727454828082,0.92044,2715.4,2714.6,0.36827]
[1727454828283,4.1285,2714.7,2713.7,0.185]
[1727454828485,0.3748,2714.6,2713.5,3.2078]
[1727454828680,0.3748,2714.6,2713.8,3.2078]
[1727454828879,0.36827,2714.7,2713.8,3.2078]
[1727454829080,3.2078,2714.9,2713.9,0.36836]
[1727454829285,3.2078,2714.6,2713.8,3.2078]
[1727454829793,3.2078,2714.6,2713.4,4.91112]
[1727454829794,3.57609,2714.6,2713.9,0.36837]
[1727454830090,3.2078,2714.6,2713.5,7.09880488]
[1727454830282,0.36832,2714.4,2713.8,0.36838]
[1727454830489,3.2078,2714.6,2713.7,0.3684]
[1727454830787,0.36831,2714.4,2713.5,3.2078]
[1727454830978,0.3683,2714.5,2713.5,3.2078]
[1727454831377,3.57609,2714.6,2714.0,0.36836]
[1727454831582,3.2078,2714.6,2713.6,0.36841]
[1727454831780,0.36834,2714.2,2713.7,0.3684]
[1727454831981,3.2078,2713.8,2713.2,3.2078]
[1727454832192,3.2078,2713.8,2713.3,0.36845]
[1727454832484,3.2078,2714.1,2713.3,0.36845]
[1727454832689,3.2078,2714.1,2713.1,4.1409731]
[1727454832876,3.57616,2714.1,2713.5,0.36842]
[1727454833081,3.2078,2714.1,2713.1,4.1409731]
[1727454833285,3.2078,2714.1,2713.2,4.12899]
[1727454833486,0.3928,2714.3,2713.7,0.3684]
[1727454833487,0.36834,2714.2,2713.7,0.3684]
[1727454833779,0.36834,2714.2,2713.2,4.12899]
[1727454833780,3.2078,2714.1,2713.3,4.03246179]
[1727454834185,3.57616,2714.1,2713.3,4.03246179]
[1727454834394,3.2078,2714.1,2713.6,0.36841]
[1727454834594,3.2078,2714.1,2713.3,4.03246179]
[1727454834785,0.36836,2714.0,2713.5,0.36843]
[1727454834979,3.2078,2714.1,2713.3,4.03246179]
[1727454835188,0.36844,2713.5,2713.2,3.2078]
[1727454835587,0.36843,2713.6,2713.2,3.2078]
[1727454835889,3.2078,2713.7,2713.2,3.2078]
[1727454836092,3.5762,2713.7,2713.2,3.2078]
[1727454836276,3.2078,2713.7,2713.2,3.2078]
[1727454836482,0.36843,2713.5,2713.2,3.2078]
[1727454836687,3.57622,2713.7,2713.2,3.57627]
[1727454836895,3.2078,2713.7,2713.2,3.2078]
[1727454837078,3.57621,2713.7,2713.2,3.2078]
[1727454837279,3.2078,2713.3,2712.0,3.2078]
[1727454837483,3.99,2713.4,2711.9,0.3757]
[1727454837484,3.57634,2712.7,2711.9,0.3757]
[1727454837681,0.36855,2712.6,2712.2,0.3686]
[1727454837890,0.36855,2712.6,2711.9,0.3757]
[1727454838091,3.2078,2712.4,2712.0,0.36862]
[1727454838287,3.2078,2712.4,2712.2,0.36861]
[1727454838591,3.2078,2712.4,2711.9,0.3757]
[1727454838795,3.2078,2712.4,2711.7,3.2078]
[1727454838796,3.2078,2712.4,2712.0,0.36863]
[1727454838996,3.57638,2712.4,2712.0,0.36863]
[1727454839293,3.2078,2712.4,2711.7,3.2078]
[1727454839591,3.57638,2712.4,2712.0,0.36863]
[1727454839783,3.57638,2712.4,2711.7,3.2078]
[1727454839784,3.2078,2712.4,2711.8,0.36866]
[1727454839984,0.36861,2712.2,2711.8,0.36866]
[1727454840180,3.2078,2712.4,2711.7,3.2078]
[1727454840386,3.57638,2712.4,2711.5,0.3757]
[1727454840592,3.2078,2712.4,2711.6,0.92173]
[1727454840890,3.2078,2712.4,2712.3,0.36859]
[1727454841089,3.2078,2712.4,2712.2,0.3686]
[1727454841289,3.2078,2712.7,2711.7,0.9217]
[1727454841485,3.2078,2712.7,2711.6,0.92172]
[1727454841486,0.36856,2712.6,2711.6,0.92172]
[1727454841689,0.36856,2712.6,2711.9,4.27261774]
[1727454841988,3.2078,2712.7,2711.7,7.00097649]
[1727454842192,3.2078,2712.7,2712.5,0.36856]